bitfinex/quotes_SOLUSD_20240809
["timestamp","ask_amount","ask_price","bid_price","bid_amount"]
[1723192596499,26.67,158.86,158.83,15.7399]
[1723192597079,26.67,158.86,158.83,22.0358]
[1723192598885,26.67,158.86,158.82,6.2963]
[1723192599920,26.67,158.86,158.81,6.2967]
[1723192601705,26.67,158.84,158.81,6.2967]
[1723192601909,26.67,158.84,158.8,22.0397]
[1723192602205,26.67,158.84,158.8,15.7426]
[1723192602418,26.67,158.85,158.82,6.2962]
[1723192602711,26.67,158.83,158.8,15.7426]
[1723192603992,26.67,158.83,158.8,22.0397]
[1723192604192,26.67,158.83,158.81,6.2968]
[1723192604511,26.67,158.83,158.8,22.0397]
[1723192604713,26.67,158.83,158.8,15.7426]
[1723192605015,26.67,158.83,158.79,6.2975]
[1723192605323,26.67,158.83,158.78,6.2979]
[1723192606119,32.966,158.83,158.78,6.2979]
[1723192607590,32.966,158.83,158.74,58.166]
[1723192607591,26.67,158.83,158.8,15.7423]
[1723192607919,16.3928,158.85,158.82,15.7405]
[1723192608095,26.67,158.86,158.82,15.7405]
[1723192608297,26.67,158.86,158.82,22.0365]
[1723192609092,32.9811,158.87,158.82,15.7405]
[1723192609492,32.9811,158.87,158.83,6.2959]
[1723192610503,32.9811,158.87,158.82,15.7405]
[1723192610699,32.9811,158.87,158.84,6.2956]
[1723192611599,26.67,158.88,158.84,15.7385]
[1723192612016,26.67,158.9,158.86,6.2948]
[1723192612197,26.67,158.9,158.88,6.2939]
[1723192612404,6.2291,158.91,158.86,15.7365]
[1723192612796,26.67,158.92,158.88,6.294]
[1723192613001,26.67,158.92,158.86,15.7365]
[1723192613002,26.67,158.92,158.89,6.2936]
[1723192613308,26.67,158.92,158.88,6.294]
[1723192615300,26.67,158.92,158.89,6.2936]
[1723192615621,6.2917,158.94,158.86,15.7365]
[1723192615622,26.67,158.94,158.88,15.7345]
[1723192616319,26.67,158.94,158.91,6.2927]
[1723192616522,26.67,158.94,158.89,6.2935]
[1723192617130,26.67,158.92,158.88,22.0285]
[1723192618133,26.67,158.92,158.89,6.2935]
[1723192618313,26.67,158.94,158.9,6.2932]
[1723192619406,32.9608,158.96,158.91,6.2927]
[1723192619615,26.67,158.96,158.92,6.2924]
[1723192621531,6.2914,158.95,158.9,15.7322]
[1723192621722,26.67,158.94,158.9,15.7322]
[1723192622216,26.67,158.94,158.9,22.0253]
[1723192623911,26.67,158.93,158.9,15.7322]
[1723192624319,26.67,158.93,158.9,22.0254]
[1723192624524,26.67,158.94,158.92,6.2923]
[1723192624928,26.67,158.94,158.91,6.2927]
[1723192625415,26.67,158.94,158.9,15.7322]
[1723192625732,26.67,158.93,158.9,15.7322]
[1723192626126,26.67,158.92,158.9,15.7322]
[1723192627037,26.67,158.94,158.91,6.2928]
[1723192627333,26.67,158.95,158.92,6.2924]
[1723192627515,26.67,158.95,158.91,6.2927]
[1723192627716,26.67,158.95,158.9,22.0254]
[1723192629729,26.67,158.94,158.91,6.2926]
[1723192630043,26.67,158.94,158.92,6.2924]
[1723192630229,26.67,158.94,158.91,6.2927]
[1723192632853,26.67,158.94,158.9,22.0253]
[1723192633153,26.67,158.94,158.91,6.2928]
[1723192633535,26.67,158.95,158.92,6.2924]
[1723192635149,26.67,158.96,158.92,6.2924]
[1723192637534,22.912,158.97,158.92,6.2924]
[1723192637535,6.042,158.99,158.96,6.2908]
[1723192637735,15.8567,159.01,158.96,6.2908]
[1723192637736,15.8567,159.01,158.96,18.26]
[1723192638027,15.8567,159.01,158.91,31.4643]
[1723192638028,18.26,158.99,158.95,18.26]
[1723192638232,18.26,158.98,158.95,6.2911]
[1723192638533,6.29,158.99,158.94,15.7284]
[1723192638731,18.26,158.96,158.94,15.7284]
[1723192639152,18.26,158.96,158.94,22.02]
[1723192639651,18.26,158.97,158.96,6.2907]
[1723192639859,26.63,158.99,158.96,6.2907]
[1723192640029,15.8567,159.01,158.94,15.7284]
[1723192640231,26.63,158.97,158.94,15.7284]
[1723192640446,26.63,158.98,158.94,22.0197]
[1723192641336,26.63,158.98,158.95,6.2912]
[1723192641654,26.63,158.99,158.96,6.2908]
[1723192642338,26.63,158.99,158.94,22.0198]
[1723192642657,26.63,158.98,158.94,22.0198]
[1723192642950,26.63,158.98,158.95,6.2911]
[1723192643539,26.63,159.0,158.96,6.2905]
[1723192644222,26.63,158.99,158.96,6.2905]
[1723192644748,26.63,159.0,158.97,6.2903]
[1723192645851,26.63,159.01,158.97,6.2903]
[1723192646854,26.63,159.0,158.96,6.2908]
[1723192647044,26.63,158.99,158.96,6.2908]
[1723192647534,26.63,159.0,158.96,6.2908]
[1723192649958,26.63,159.01,158.97,6.2904]
[1723192650333,26.63,159.0,158.97,6.2904]
[1723192650847,26.63,158.98,158.93,15.73]
[1723192651247,26.63,158.98,158.95,6.2909]
[1723192652064,26.63,159.01,158.95,15.7275]
[1723192652937,26.63,159.01,158.97,6.2904]
[1723192655243,26.63,159.0,158.97,6.2904]
[1723192655965,26.63,159.0,158.98,6.29]
[1723192656165,26.63,159.01,158.97,6.2903]
[1723192658872,26.63,159.0,158.97,6.2903]
[1723192659375,26.63,159.0,158.98,6.29]
[1723192659669,18.25,158.99,158.98,6.29]
[1723192662766,18.25,158.99,158.97,15.7256]
[1723192662955,18.25,158.98,158.97,15.7256]
[1723192663471,18.25,158.98,158.97,22.0157]
[1723192664260,15.3484,159.05,159.02,6.2885]
[1723192664463,6.2369,159.08,159.07,6.2865]
[1723192664864,33.4188,159.1,159.07,6.2865]
[1723192665070,18.25,159.11,159.08,6.286]
[1723192665264,24.2925,159.12,159.08,6.286]
[1723192665670,18.25,159.09,159.05,15.7178]
[1723192665852,18.25,159.06,159.05,15.7178]
[1723192666600,18.25,159.06,158.97,13.68]
[1723192666792,18.25,159.02,159.0,6.2892]
[1723192667468,18.25,159.01,158.93,29.32099697]
[1723192667686,18.25,158.98,158.96,6.2908]
[1723192667852,18.25,158.99,158.95,15.7275]
[1723192668052,6.4475,159.05,158.98,18.25]
[1723192668281,6.4475,159.05,158.94,32.71486367]
[1723192668481,22.3267,159.11,158.95,26.18141362]
[1723192668665,6.2855,159.1,159.04,6.2876]
[1723192668984,22.3267,159.11,159.04,15.7187]
[1723192669283,18.25,159.08,159.07,6.2865]
[1723192669586,22.3267,159.11,159.04,15.7187]
[1723192669794,18.25,159.07,159.04,15.7187]
[1723192669954,22.3267,159.11,159.04,15.7187]
[1723192669955,18.25,159.08,159.04,15.7187]
[1723192670153,22.3267,159.11,159.05,18.25]
[1723192670356,22.1208,159.15,159.11,6.2849]
[1723192670553,18.25,159.14,159.11,6.2849]
[1723192672080,24.3615,159.15,159.11,6.2849]
[1723192672286,24.3615,159.15,159.12,6.2845]
[1723192672661,18.25,159.14,159.12,6.2845]
[1723192673063,6.2822,159.18,159.12,6.2845]
[1723192673270,18.25,159.14,159.12,6.2845]
[1723192673473,18.25,159.13,159.1,21.9982]
[1723192674559,18.25,159.11,159.07,6.2865]
[1723192674758,15.7055,159.18,159.06,15.7164]
[1723192674759,18.25,159.09,159.06,15.7164]
[1723192675586,17.25,159.09,159.06,15.7164]
[1723192676173,60.7055,159.18,159.06,15.7164]
[1723192676174,18.25,159.08,159.06,15.7164]
[1723192676473,18.25,159.07,159.06,15.7164]
[1723192678364,18.25,159.07,159.02,15.7204]
[1723192678582,95.8372,159.12,159.05,6.2873]
[1723192678583,18.25,159.06,159.05,6.2873]
[1723192678968,18.25,159.06,159.03,6.288]
[1723192679178,95.8372,159.12,159.02,22.0088]
[1723192679179,18.25,159.04,159.02,22.0088]
[1723192679378,18.25,159.03,159.02,15.7204]
[1723192679776,18.25,159.03,158.97,6.2903]
[1723192679973,18.25,158.98,158.97,6.2903]
[1723192680697,18.25,159.01,159.0,6.289]
[1723192681071,18.25,159.03,158.99,18.25]
[1723192681493,18.25,159.02,159.0,15.7224]
[1723192681678,26.61,159.03,159.0,15.7224]
[1723192682375,26.61,159.01,158.96,15.7262]
[1723192682576,26.61,159.01,158.99,6.2896]
[1723192682889,26.61,159.02,158.99,6.2896]
[1723192683287,26.61,159.0,158.96,15.7262]
[1723192683487,26.61,158.99,158.96,15.7262]
[1723192684298,26.61,158.98,158.96,15.7262]
[1723192684988,26.61,158.99,158.96,15.7262]
[1723192685184,26.61,159.0,158.97,6.2901]
[1723192685382,26.61,159.01,158.98,6.29]
[1723192685584,26.61,159.01,158.99,6.2895]
[1723192685790,6.5074,159.04,158.99,6.2895]
[1723192686005,20.0,159.03,158.99,6.2895]
[1723192686188,26.61,159.02,158.99,6.2895]
[1723192688202,20.0,159.03,158.91,13.68]
[1723192688203,26.61,159.0,158.91,13.68]
[1723192688514,26.61,158.97,158.89,26.61]
[1723192688697,26.61,158.97,158.93,6.292]
[1723192688999,26.61,158.96,158.93,6.292]
[1723192689581,26.61,158.97,158.95,6.2909]
[1723192689780,26.61,158.98,158.95,6.2909]
[1723192690005,26.61,158.98,158.94,22.02]
[1723192690206,26.61,158.97,158.94,22.02]
[1723192691697,26.61,158.97,158.87,20.25221074]
[1723192691698,26.61,158.95,158.9,15.7323]
[1723192691914,26.61,158.93,158.9,15.7323]
[1723192692283,26.61,158.93,158.91,6.2927]
[1723192692483,26.61,158.92,158.9,22.0254]
[1723192692692,26.61,158.92,158.9,15.7323]
[1723192692986,26.61,158.91,158.87,22.0299]
[1723192693197,26.61,158.88,158.87,15.7358]
[1723192693706,26.61,158.89,158.87,22.0302]
[1723192693904,26.61,158.93,158.91,6.2924]
[1723192695620,26.61,158.93,158.9,6.2931]
[1723192695789,26.61,158.94,158.91,6.2926]
[1723192696195,26.61,158.94,158.9,6.2932]
[1723192696391,26.61,158.92,158.89,15.7335]
[1723192697121,26.61,158.91,158.88,6.294]
[1723192697413,26.61,158.91,158.87,6.2943]
[1723192697613,26.61,158.9,158.87,6.2943]
[1723192697808,6.2957,158.84,158.81,6.57320566]
[1723192698012,26.61,158.82,158.79,6.2976]
[1723192698318,26.61,158.82,158.78,15.7449]
[1723192698687,26.61,158.82,158.81,6.2967]
[1723192698896,26.61,158.82,158.78,15.7449]
[1723192699192,26.61,158.8,158.75,15.7477]
[1723192699503,26.61,158.8,158.78,6.2977]
[1723192702512,26.61,158.84,158.8,15.743]
[1723192702691,52.00649398,158.89,158.78,1.2595717]
[1723192702692,26.61,158.85,158.83,6.296]
[1723192702890,26.61,158.88,158.86,6.2947]
[1723192703118,26.61,158.88,158.84,15.7383]
[1723192703319,26.61,158.87,158.84,15.7383]
[1723192703495,26.61,158.87,158.85,6.2951]
[1723192705322,26.61,158.87,158.81,15.7417]
[1723192705609,26.61,158.88,158.83,15.7395]
[1723192706919,26.61,158.88,158.85,6.295]
[1723192707720,26.61,158.88,158.86,6.2948]
[1723192708013,26.61,158.88,158.83,15.7395]
[1723192708014,26.61,158.88,158.85,6.2951]
[1723192708223,26.61,158.86,158.73,6.56913332]
[1723192708405,20.0,158.87,158.73,33.17913332]
[1723192708406,65.0,158.87,158.73,33.17913332]
[1723192708610,26.61,158.8,158.73,26.61]
[1723192709235,26.61,158.8,158.78,6.2976]
[1723192710412,26.61,158.8,158.77,22.0438]
[1723192712425,26.61,158.8,158.72,6.56839646]
[1723192712426,26.61,158.78,158.74,15.7485]
[1723192712605,26.61,158.78,158.75,6.299]
[1723192713010,26.61,158.78,158.76,6.2987]
[1723192713735,26.61,158.78,158.77,6.2983]
[1723192715212,6.2955,158.85,158.74,58.1071]
[1723192715415,26.61,158.85,158.77,26.61]
[1723192715615,26.61,158.85,158.84,6.2956]
[1723192715933,26.61,158.86,158.84,6.2956]
[1723192716227,26.61,158.87,158.85,6.2952]
[1723192716737,26.61,158.87,158.84,6.2955]
[1723192717531,26.61,158.87,158.85,6.2952]
[1723192717707,26.61,158.88,158.85,6.2952]
[1723192718634,26.61,158.87,158.84,7.55455662]
[1723192718844,26.61,158.87,158.84,6.2955]
[1723192719353,26.61,158.85,158.8,15.743]
[1723192719508,26.61,158.85,158.81,6.2964]
[1723192719712,26.61,158.84,158.81,6.2964]
[1723192720113,26.61,158.85,158.82,6.2963]
[1723192720320,26.61,158.85,158.83,6.296]
[1723192720630,26.61,158.84,158.8,15.743]
[1723192721416,26.61,158.82,158.8,15.743]
[1723192722139,26.61,158.88,158.8,15.743]
[1723192722140,26.61,158.83,158.8,15.743]
[1723192722311,26.61,158.84,158.8,15.743]
[1723192722506,26.61,158.84,158.82,6.2964]
[1723192723344,26.61,158.86,158.84,6.2954]
[1723192723545,26.61,158.86,158.85,6.2952]
[1723192723849,26.61,158.87,158.85,6.2952]
[1723192725260,28.4323,158.89,158.85,6.2952]
[1723192725553,26.61,158.88,158.85,6.2952]
[1723192725926,26.61,158.88,158.84,22.0341]
[1723192726145,26.61,158.87,158.84,15.7385]
[1723192726652,26.61,158.87,158.84,22.0341]
[1723192726866,26.61,158.87,158.84,15.7385]
[1723192727860,26.61,158.86,158.84,15.7385]
[1723192728035,26.61,158.86,158.81,22.0383]
[1723192728548,32.9048,158.86,158.82,6.2963]
[1723192729132,32.9048,158.86,158.81,15.7417]
[1723192729133,26.61,158.86,158.81,15.7417]
[1723192729334,26.61,158.86,158.82,6.2961]
[1723192729551,26.61,158.86,158.83,6.296]
[1723192730040,26.61,158.86,158.84,1.25915812]
[1723192730353,22.1387,158.89,158.85,6.2952]
[1723192730354,26.61,158.88,158.85,6.2952]
[1723192730741,26.61,158.88,158.86,6.2946]
[1723192730926,26.61,158.88,158.87,6.2944]
[1723192731127,26.61,158.88,158.86,7.55333125]
[1723192731541,26.61,158.92,158.87,15.7355]
[1723192731729,32.9025,158.92,158.88,7.55253789]
[1723192732962,32.9025,158.92,158.88,1.25863789]
[1723192733330,26.61,158.92,158.88,1.25863789]
[1723192733530,21.4027,158.95,158.89,16.99175609]
[1723192733531,42.0004,158.95,158.89,16.99175609]
[1723192733753,42.0004,158.95,158.9,1.25837046]
[1723192734441,42.0004,158.95,158.91,6.2925]
[1723192735440,26.61,158.95,158.92,6.2924]
[1723192735648,6.2903,158.98,158.93,1.25826769]
[1723192735649,26.61,158.97,158.93,1.25826769]
[1723192736459,32.9005,158.97,158.91,15.7315]
[1723192736652,32.9005,158.97,158.92,6.2923]
[1723192736958,22.2781,158.99,158.88,71.61]
[1723192736959,6.292,158.93,158.88,67.0289]
[1723192737261,32.902,158.93,158.88,22.0289]
[1723192737431,6.2926,158.92,158.88,15.7349]
[1723192737632,32.9021,158.93,158.88,22.0289]
[1723192739264,32.9021,158.93,158.89,6.2936]
[1723192739440,26.61,158.93,158.89,6.2936]
[1723192739636,26.61,158.93,158.9,6.2931]
[1723192739844,26.61,158.95,158.92,6.2924]
[1723192741347,26.61,158.95,158.9,15.7325]
[1723192741667,26.61,158.95,158.91,6.2928]
[1723192745544,6.2909,158.96,158.91,6.2928]
[1723192745753,26.61,158.95,158.91,6.2928]
[1723192747742,26.61,158.93,158.87,15.7359]
[1723192747962,26.61,158.91,158.87,15.7359]
[1723192748756,26.61,158.91,158.87,22.0302]
[1723192749071,26.61,158.89,158.84,15.7385]
[1723192749471,26.61,158.89,158.87,6.2943]
[1723192750663,26.61,158.89,158.88,6.294]
[1723192751373,26.61,158.91,158.88,15.7342]
[1723192751553,26.61,158.91,158.9,6.2932]
[1723192752581,26.61,158.91,158.88,15.7342]
[1723192752880,26.61,158.89,158.88,15.7342]
[1723192753249,26.61,158.9,158.89,6.2936]
[1723192753581,26.61,158.91,158.89,6.2936]
[1723192754764,26.61,158.92,158.89,6.2936]
[1723192755773,26.61,158.91,158.89,6.2936]
[1723192755967,26.61,158.9,158.88,15.7342]
[1723192756172,26.61,158.89,158.85,15.7375]
[1723192756353,26.61,158.86,158.8,9.33999398]
[1723192756552,26.61,158.83,158.8,6.2969]
[1723192756756,26.61,158.83,158.81,6.2967]
[1723192757063,26.61,158.83,158.8,6.2971]
[1723192759760,26.61,158.83,158.81,6.2967]
[1723192760175,6.2949,158.86,158.81,6.2967]
[1723192760374,26.61,158.84,158.81,6.2967]
[1723192760665,26.61,158.84,158.82,6.2964]
[1723192763086,26.61,158.84,158.81,6.2967]
[1723192767496,26.61,158.86,158.82,16.99984854]
[1723192767667,16.0302,158.88,158.83,1.25898012]
[1723192767668,26.61,158.87,158.83,1.25898012]
[1723192767871,26.61,158.87,158.84,6.2953]
[1723192769882,26.61,158.87,158.83,7.55487372]
[1723192770677,26.61,158.87,158.84,6.2954]
[1723192771497,26.61,158.87,158.83,6.2959]
[1723192772101,32.9045,158.87,158.82,22.0369]
[1723192772403,16.0302,158.88,158.82,22.0369]
[1723192772404,26.61,158.85,158.82,15.7406]
[1723192773473,26.61,158.83,158.79,22.0414]
[1723192773672,26.61,158.83,158.8,6.2971]
[1723192775583,26.61,158.83,158.81,6.2968]
[1723192776383,26.61,158.85,158.82,15.741]
[1723192776886,26.61,158.85,158.83,6.296]
[1723192777194,26.61,158.85,158.82,15.741]
[1723192777778,42.6402,158.88,158.77,33.18196383]
[1723192777779,6.2979,158.79,158.77,6.57196383]
[1723192777998,26.61,158.78,158.72,13.68]
[1723192778300,26.61,158.77,158.72,13.68]
[1723192778503,26.61,158.77,158.75,6.2991]
[1723192778704,6.2973,158.8,158.75,6.2991]
[1723192778994,26.61,158.77,158.75,6.2991]
[1723192779690,26.61,158.77,158.76,6.2988]
[1723192781985,43.2581,158.81,158.79,6.2974]
[1723192782609,6.0117,158.82,158.79,15.7435]
[1723192782898,6.0117,158.82,158.81,6.2968]
[1723192783101,41.7923,158.85,158.83,6.296]
[1723192783808,41.7923,158.85,158.82,6.2964]
[1723192784513,26.61,158.83,158.78,15.7448]
[1723192784696,26.61,158.83,158.79,6.2974]
[1723192784891,32.906,158.83,158.79,6.2974]
[1723192785302,26.61,158.83,158.79,6.2974]
[1723192785601,26.61,158.83,158.8,6.2971]
[1723192787313,26.61,158.83,158.81,6.2967]
[1723192787622,41.7923,158.85,158.8,15.7424]
[1723192787796,41.7923,158.85,158.83,6.296]
[1723192788298,41.7923,158.85,158.82,6.2963]
[1723192788505,41.7923,158.85,158.81,6.2967]
[1723192790093,26.61,158.83,158.77,15.7456]
[1723192790800,32.906,158.83,158.78,6.2976]
[1723192791209,32.906,158.83,158.79,6.2975]
[1723192791407,26.61,158.83,158.79,6.2975]
[1723192792218,26.61,158.8,158.77,22.0438]
[1723192792426,26.61,158.8,158.78,6.298]
[1723192792603,26.61,158.82,158.79,6.2976]
[1723192793520,26.61,158.8,158.77,15.7456]
[1723192794607,26.61,158.78,158.73,15.7492]
[1723192794916,26.61,158.78,158.76,6.2987]
[1723192795120,6.2969,158.81,158.75,15.7474]
[1723192795121,26.61,158.79,158.77,6.2984]
[1723192795307,26.61,158.79,158.75,22.0463]
[1723192795703,26.61,158.79,158.76,6.2987]
[1723192797506,26.61,158.79,158.77,6.2983]
[1723192797906,26.61,158.78,158.76,6.2987]
[1723192799916,26.61,158.77,158.75,15.7474]
[1723192800121,26.61,158.76,158.75,15.7474]
[1723192801628,26.61,158.76,158.72,22.0506]
[1723192802495,42.2579,158.78,158.74,15.7484]
[1723192802712,26.61,158.78,158.71,67.45344871]
[1723192803032,6.4939,158.79,158.72,71.61]
[1723192803626,33.1039,158.79,158.77,6.2984]
[1723192804008,33.1039,158.79,158.76,22.0452]
[1723192804316,26.61,158.78,158.76,15.7465]
[1723192805640,26.61,158.77,158.74,6.2994]
[1723192805816,26.61,158.77,158.73,6.2999]
[1723192806019,26.61,158.76,158.73,6.2999]
[1723192806225,26.61,158.75,158.72,22.0504]
[1723192806717,26.61,158.75,158.72,6.3003]
[1723192808330,26.61,158.73,158.71,22.0521]
[1723192809113,26.61,158.73,158.71,15.7514]
[1723192809732,26.61,158.73,158.71,22.0521]
[1723192810323,26.61,158.73,158.69,0.8093043]
[1723192810324,26.61,158.72,158.69,0.8093043]
[1723192810506,26.61,158.71,158.69,7.1105043]
[1723192810713,6.2725,158.73,158.7,6.3011]
[1723192810714,26.61,158.72,158.7,6.3011]
[1723192811035,26.61,158.72,158.69,0.8093043]
[1723192811036,26.61,158.72,158.69,7.1107043]
[1723192811535,26.61,158.72,158.7,6.3011]
[1723192811918,26.61,158.72,158.69,7.1108043]
[1723192813450,26.61,158.72,158.69,0.8093043]
[1723192813451,26.61,158.71,158.69,0.8093043]
[1723192813732,26.61,158.7,158.69,0.8093043]
[1723192813932,46.61,158.7,158.69,0.8093043]
[1723192814314,52.9111,158.7,158.69,0.8093043]
[1723192816046,26.61,158.71,158.69,0.8093043]
[1723192816336,26.61,158.72,158.69,7.1106043]
[1723192816545,26.61,158.72,158.69,0.8093043]
[1723192816949,26.61,158.71,158.69,0.8093043]
[1723192818014,26.61,158.7,158.69,0.8093043]
[1723192818450,32.9111,158.7,158.69,0.8093043]
[1723192819110,52.9111,158.7,158.69,0.8093043]
[1723192825562,46.61,158.7,158.69,0.8093043]
[1723192825739,20.0,158.7,158.69,0.8093043]
[1723192826058,26.61,158.71,158.69,0.8093043]
[1723192826228,26.61,158.72,158.69,7.1107043]
[1723192826429,6.2725,158.73,158.7,6.3011]
[1723192827258,32.8825,158.73,158.7,6.3011]
[1723192827560,32.9104,158.72,158.69,0.8093043]
[1723192827926,26.61,158.72,158.69,7.1108043]
[1723192828156,39.1826,158.73,158.69,7.1108043]
[1723192828459,39.1825,158.73,158.69,7.1108043]
[1723192828768,32.9105,158.72,158.69,0.8093043]
[1723192829051,6.3008,158.71,158.69,0.8093043]
[1723192829254,32.9104,158.72,158.69,0.8093043]
[1723192831861,26.61,158.72,158.69,0.8093043]
[1723192832064,26.61,158.72,158.69,7.1108043]
[1723192832743,26.61,158.72,158.69,0.8093043]
[1723192832944,32.9105,158.72,158.69,0.8093043]
[1723192833661,6.3005,158.72,158.69,0.8093043]
[1723192834766,12.5726,158.73,158.69,0.8093043]
[1723192834954,6.2725,158.73,158.69,0.8093043]
[1723192835150,22.6358,158.75,158.7,6.3011]
[1723192835643,6.2997,158.74,158.69,7.1107043]
[1723192835834,26.2997,158.74,158.69,7.1107043]
[1723192838267,6.3006,158.72,158.69,0.8093043]
[1723192839064,6.3011,158.7,158.69,0.8093043]
[1723192839268,26.3011,158.7,158.69,0.8093043]
[1723192843448,20.0,158.7,158.69,0.8093043]
[1723192843643,6.3004,158.72,158.69,0.8093043]
[1723192843865,6.3,158.73,158.69,7.1108043]
[1723192844946,22.6358,158.75,158.69,0.8093043]
[1723192845149,6.2492,158.77,158.69,0.8093043]
[1723192845350,6.2984,158.77,158.7,15.7523]
[1723192846156,6.298,158.78,158.73,6.2999]
[1723192847281,6.0081,158.81,158.75,15.7478]
[1723192847451,15.4984,158.83,158.77,6.2982]
[1723192847654,15.4984,158.83,158.76,7.55830458]
[1723192848352,15.4984,158.83,158.77,6.2983]
[1723192849077,6.2968,158.81,158.76,6.2987]
[1723192850180,15.5629,158.87,158.77,1.25953367]
[1723192850489,6.2952,158.86,158.81,15.7413]
[1723192850649,15.5629,158.87,158.81,15.7413]
[1723192850849,15.5629,158.87,158.73,19.9755]
[1723192851049,6.2968,158.81,158.76,6.2984]
[1723192851579,6.2965,158.82,158.76,6.2984]
[1723192852449,6.4224,158.84,158.75,6.2992]
[1723192852657,65.0,158.83,158.75,6.2992]
[1723192853685,65.0,158.83,158.74,15.748]
[1723192853859,15.3888,158.82,158.71,15.7519]
[1723192854066,45.0,158.81,158.71,15.7519]
[1723192854263,20.0,158.8,158.71,15.7519]
[1723192854492,20.0,158.8,158.72,6.3]
[1723192854675,26.2975,158.8,158.75,6.299]
[1723192854879,15.3888,158.82,158.73,15.7491]
[1723192855051,26.2971,158.81,158.76,6.2988]
[1723192855257,20.0,158.81,158.73,15.7491]
[1723192855473,20.0,158.81,158.74,6.2995]
[1723192855654,51.2972,158.8,158.74,6.2995]
[1723192858063,6.2972,158.8,158.74,6.2995]
[1723192858259,6.2972,158.8,158.75,6.299]
[1723192858459,26.2969,158.81,158.76,6.2987]
[1723192858967,20.0,158.81,158.72,31.5011]
[1723192859168,20.0,158.81,158.73,45.0]
[1723192859368,26.2968,158.81,158.77,15.745]
[1723192859567,26.2968,158.81,158.76,6.2987]
[1723192860285,21.6852,158.82,158.77,6.2983]
[1723192860490,15.3888,158.82,158.77,1.25951383]
[1723192860779,15.3888,158.82,158.73,1.25945869]
[1723192860988,6.4224,158.84,158.79,15.7436]
[1723192861566,12.7181,158.84,158.79,22.0411]
[1723192861992,6.2964,158.82,158.78,6.298]
[1723192862361,6.4224,158.84,158.78,6.298]
[1723192862362,6.296,158.83,158.78,6.298]
[1723192863284,6.4224,158.84,158.78,15.7442]
[1723192864484,6.4224,158.84,158.8,6.2969]
[1723192865169,6.4224,158.84,158.81,6.2967]
[1723192865572,6.4224,158.84,158.8,6.2971]
[1723192867692,6.4224,158.84,158.81,6.2967]
[1723192868293,6.2952,158.85,158.81,6.2967]
[1723192868593,6.2952,158.85,158.8,6.2971]
[1723192869593,21.7216,158.86,158.81,6.2968]
[1723192869768,20.0,158.85,158.81,6.2968]
[1723192870296,15.4267,158.86,158.83,6.296]
[1723192871081,15.4267,158.86,158.82,22.0368]
[1723192871294,21.7216,158.86,158.82,15.7404]
[1723192871678,15.4267,158.86,158.82,22.0367]
[1723192872395,15.4267,158.86,158.83,6.2959]